bitfinex/quotes_ETHUSD_20250904
["timestamp","ask_amount","ask_price","bid_price","bid_amount"]
[1757000649898,6.47165823,4314.7,4314.6,1.19240001]
[1757000650093,4.154,4314.7,4314.6,1.19240001]
[1757000651431,6.47165823,4314.7,4314.6,1.19240001]
[1757000654817,6.47165823,4314.7,4314.6,1e-08]
[1757000655436,6.56825823,4314.7,4314.6,1e-08]
[1757000655641,10.10075823,4314.7,4314.6,1e-08]
[1757000656230,10.89275823,4314.7,4314.6,1e-08]
[1757000656429,10.89275823,4314.7,4314.1,0.004]
[1757000656430,2.31792684,4314.2,4314.1,1e-08]
[1757000656623,9.47092684,4314.2,4314.1,1e-08]
[1757000656825,10.10212684,4314.2,4314.1,1e-08]
[1757000658148,2.31835674,4313.4,4313.3,0.004]
[1757000658456,11.17935674,4313.4,4313.3,0.004]
[1757000658748,11.49195674,4313.4,4313.3,0.004]
[1757000658916,11.49115674,4313.4,4313.3,0.004]
[1757000660152,7.45415674,4313.4,4313.3,0.004]
[1757000660319,11.49115674,4313.4,4313.3,0.004]
[1757000660511,7.45415674,4313.4,4313.3,0.004]
[1757000660738,11.49115674,4313.4,4313.3,0.004]
[1757000661147,7.14155674,4313.4,4313.3,0.004]
[1757000661359,11.27515674,4313.4,4313.3,0.004]
[1757000662560,4.824,4313.4,4313.3,1.2352]
[1757000662857,11.17935674,4313.4,4313.3,1.2352]
[1757000664430,11.17935674,4313.4,4313.3,0.743]
[1757000665070,11.49455674,4313.4,4313.3,0.004]
[1757000666732,7.14235674,4313.4,4313.3,0.2947]
[1757000666932,8.86,4313.4,4313.3,0.7869]
[1757000667240,8.17835674,4313.4,4313.3,0.7869]
[1757000667441,8.17835674,4313.4,4313.3,0.2947]
[1757000667642,8.17835674,4313.4,4313.3,0.004]
[1757000668634,8.49355674,4313.4,4313.3,0.004]
[1757000668835,8.17835674,4313.4,4313.3,0.004]
[1757000669175,8.17835674,4313.4,4313.3,0.2947]
[1757000669344,8.17835674,4313.4,4313.3,0.743]
[1757000669874,8.17835674,4313.4,4313.3,1.2352]
[1757000670037,8.17835674,4313.4,4313.3,0.004]
[1757000670634,11.17835674,4313.4,4313.3,0.004]
[1757000671483,11.27495674,4313.4,4313.3,0.004]
[1757000672774,11.27675674,4313.4,4313.3,0.004]
[1757000674965,11.17835674,4313.4,4313.3,0.004]
[1757000675166,11.17835674,4313.4,4313.3,0.2947]
[1757000675365,11.17835674,4313.4,4313.3,0.743]
[1757000675586,11.17835674,4313.4,4313.3,0.004]
[1757000676884,11.17835674,4313.4,4313.3,0.2947]
[1757000677099,11.17835674,4313.4,4313.3,1.2352]
[1757000677861,11.17735674,4313.4,4313.3,1.2352]
[1757000678490,11.17735674,4313.4,4313.3,0.743]
[1757000678687,11.17735674,4313.4,4313.3,0.2947]
[1757000678882,11.17735674,4313.4,4313.3,0.004]
[1757000680187,11.17735674,4313.4,4313.3,0.743]
[1757000680869,7.14235674,4313.4,4313.3,1.2352]
[1757000681058,11.17635674,4313.4,4313.3,1.2352]
[1757000682598,11.27295674,4313.4,4313.3,0.004]
[1757000682785,11.27395674,4313.4,4313.3,0.004]
[1757000682956,12.63307931,4313.4,4313.3,0.004]
[1757000683862,12.90467931,4313.4,4313.3,0.004]
[1757000684058,13.16557931,4313.4,4313.3,0.004]
[1757000684367,5.31761049,4313.3,4313.2,1e-08]
[1757000684561,2.31862551,4312.9,4312.8,1e-08]
[1757000684761,10.35802551,4312.9,4312.8,1e-08]
[1757000685059,2.31884057,4312.5,4312.4,1e-08]
[1757000685276,6.46784057,4312.5,4312.4,1e-08]
[1757000685493,7.09694057,4312.5,4312.4,1e-08]
[1757000685701,12.03586075,4312.5,4312.4,1e-08]
[1757000687195,0.792,4312.2,4311.8,1e-08]
[1757000687400,2.31916324,4311.9,4311.8,1e-08]
[1757000687588,9.64836324,4311.9,4311.8,1e-08]
[1757000687989,10.55636324,4311.9,4311.8,1e-08]
[1757000688191,12.09273314,4311.9,4311.8,1e-08]
[1757000688493,7.07966136,4311.9,4311.8,1e-08]
[1757000688677,11.11266136,4311.9,4311.8,1e-08]
[1757000688878,11.22753869,4311.9,4311.8,1e-08]
[1757000693325,6.78346136,4311.9,4311.8,1.24540001]
[1757000693629,5.43516324,4311.9,4311.8,1.24540001]
[1757000693826,9.35116324,4311.9,4311.8,1.24540001]
[1757000694027,9.46716324,4311.9,4311.8,1.24540001]
[1757000699199,9.46616324,4311.9,4311.8,1.24540001]
[1757000699601,3.116,4311.9,4311.8,1.24540001]
[1757000699825,9.46616324,4311.9,4311.8,1.24540001]
[1757000700418,7.147,4311.9,4311.8,1.24540001]
[1757000700619,0.116,4311.9,4311.8,1.36994001]
[1757000700821,4.147,4311.9,4311.8,1.37394001]
[1757000701031,4.147,4311.9,4311.8,1.24940001]
[1757000701837,0.116,4311.9,4311.8,1.24940001]
[1757000702035,4.147,4311.9,4311.8,1.24940001]
[1757000702233,6.46616324,4311.9,4311.8,0.30070001]
[1757000702635,6.46616324,4311.9,4311.8,0.77080001]
[1757000702950,10.51558627,4311.9,4311.8,1.24940001]
[1757000703331,7.147,4311.9,4311.8,1.24940001]
[1757000703522,9.46616324,4311.9,4311.8,1.24940001]
[1757000703717,9.46616324,4311.9,4311.8,0.00400001]
[1757000704050,9.46516324,4311.9,4311.8,1.24940001]
[1757000704827,5.43516324,4311.9,4311.8,1.24940001]
[1757000705053,7.146,4311.9,4311.8,1.24940001]
[1757000705242,9.46516324,4311.9,4311.8,1.24940001]
[1757000705445,9.46516324,4311.9,4311.8,0.00400001]
[1757000707053,9.56176324,4311.9,4311.8,0.00400001]
[1757000707931,10.92074739,4311.9,4311.8,0.00400001]
[1757000708129,10.82414739,4311.9,4311.8,0.00400001]
[1757000708555,9.46516324,4311.9,4311.8,0.30070001]
[1757000708758,3.116,4311.9,4311.8,1.24940001]
[1757000709060,4.145,4311.9,4311.8,1.24940001]
[1757000710151,4.1442,4311.9,4311.8,1.24940001]
[1757000710556,4.1442,4311.9,4311.8,0.77930001]
[1757000710856,9.55996324,4311.9,4311.8,0.00400001]
[1757000711023,5.43436324,4311.9,4311.8,0.30070001]
[1757000711225,9.46236324,4311.9,4311.8,1.24940001]
[1757000711449,9.46236324,4311.9,4311.8,0.77080001]
[1757000711733,9.46236324,4311.9,4311.8,1.24940001]
[1757000712173,3.1152,4311.9,4311.8,1.24940001]
[1757000712372,0.1152,4311.9,4311.8,3.69355704]
[1757000712666,1.709,4312.1,4312.0,2.31910946]
[1757000712833,5.737,4312.1,4312.0,9.44780787]
[1757000713436,0.116,4312.4,4312.3,2.31894812]
[1757000713628,0.116,4312.4,4312.2,2.31899931]
[1757000713629,4.144,4312.4,4312.2,2.31899931]
[1757000713834,4.144,4312.4,4312.3,1.2134]
[1757000717671,6.55951102,4312.4,4311.8,0.43310001]
[1757000717874,0.116,4312.4,4311.8,0.43310001]
[1757000718167,2.31988839,4312.5,4312.3,0.289]
[1757000718468,4.026,4312.4,4312.3,1.2134]
[1757000718669,4.142,4312.4,4311.8,0.00400001]
[1757000718869,0.116,4311.9,4311.8,0.49930001]
[1757000719045,4.142,4311.9,4311.8,0.49930001]
[1757000719378,4.142,4311.9,4311.8,3.10751704]
[1757000719557,4.142,4311.9,4311.8,2.34841199]
[1757000719770,4.142,4311.9,4311.8,4.66762902]
[1757000720159,4.026,4311.9,4311.8,4.66762902]
[1757000720976,0.116,4312.2,4312.1,2.31905568]
[1757000721140,4.142,4312.2,4312.1,2.31905568]
[1757000721470,4.142,4312.2,4312.1,3.53245568]
[1757000722679,4.026,4312.2,4312.1,4.93544796]
[1757000722976,0.001,4312.4,4312.3,2.31894812]
[1757000723270,0.001,4312.4,4312.3,15.40224653]
[1757000723479,0.001,4312.4,4312.3,16.61564653]
[1757000723645,0.001,4312.4,4312.3,10.73234812]
[1757000724343,0.001,4312.4,4312.3,18.6494106]
[1757000724551,0.001,4312.4,4312.3,15.6494106]
[1757000724778,4.026,4312.4,4312.3,15.6494106]
[1757000725141,0.001,4312.4,4312.3,15.6494106]
[1757000725347,0.001,4312.4,4312.3,15.7654106]
[1757000726880,0.001,4312.4,4312.3,9.88211219]
[1757000727185,0.001,4312.5,4312.4,6.11089435]
[1757000727474,0.001,4312.5,4312.4,14.85573324]
[1757000727691,0.001,4312.5,4312.4,15.14473324]
[1757000728378,0.001,4312.5,4312.4,19.43765525]
[1757000728593,0.001,4312.9,4312.8,6.11067928]
[1757000728896,0.001,4312.9,4312.8,17.15992077]
[1757000729061,0.001,4312.9,4312.8,18.37332077]
[1757000731796,0.001,4312.9,4312.8,18.55032077]
[1757000732209,0.001,4313.4,4312.9,5.31862551]
[1757000732366,0.025,4313.8,4313.7,3.11019551]
[1757000732569,0.025,4313.8,4313.7,19.12654377]
[1757000732766,0.025,4313.8,4313.7,20.05094377]
[1757000732968,0.025,4313.8,4313.7,20.14383967]
[1757000733478,0.025,4313.8,4313.7,14.26054126]
[1757000734668,0.001,4314.3,4313.7,14.26054126]
[1757000734669,0.001,4314.3,4313.8,6.11014177]
[1757000734870,0.001,4314.3,4313.8,9.2141712]
[1757000735077,0.001,4314.3,4313.8,9.5031712]
[1757000735274,0.001,4314.3,4314.2,3.10992684]
[1757000735497,0.001,4314.3,4314.2,25.78748578]
[1757000735799,0.001,4314.3,4314.2,28.60088578]
[1757000736012,0.001,4314.3,4314.2,10.06846732]
[1757000736394,0.001,4314.3,4314.2,7.54406732]
[1757000736779,0.0976,4314.3,4314.2,5.31792684]
[1757000736992,0.0976,4314.3,4314.2,5.43392684]
[1757000737302,0.0976,4314.3,4314.2,9.63392684]
[1757000737481,0.6321,4314.3,4314.0,0.116]
[1757000737684,0.5345,4314.2,4313.7,0.174317]
[1757000737891,0.5345,4314.2,4313.5,2.31825991]
[1757000738415,0.5345,4314.2,4313.6,2.31824098]
[1757000738587,0.001,4314.3,4313.7,2.3181789]
[1757000738794,0.0966,4313.8,4313.3,2.3183601]
[1757000738982,0.0966,4313.8,4313.5,2.31824974]
[1757000739182,0.0966,4313.8,4313.4,2.31834124]
[1757000739582,0.0966,4313.8,4313.5,2.318303]
[1757000740108,0.0966,4313.8,4313.6,2.31823859]
[1757000740511,0.001,4313.9,4313.7,2.31819551]
[1757000740697,0.001,4313.9,4313.6,2.31824925]
[1757000741012,0.001,4313.9,4313.8,2.60714177]
[1757000741521,0.001,4313.9,4313.8,3.53154177]
[1757000741688,0.001,4313.9,4313.8,4.11652087]
[1757000742622,0.001,4313.9,4313.8,8.92752087]
[1757000742833,0.001,4313.9,4313.8,11.92752087]
[1757000743313,0.001,4313.9,4313.8,16.12752087]
[1757000743912,0.001,4313.9,4313.8,17.72752087]
[1757000745189,0.001,4314.3,4314.2,3.10992684]
[1757000745392,1e-08,4314.7,4314.5,0.792]
[1757000745616,1e-08,4314.7,4314.6,10.44858906]
[1757000745789,1e-08,4314.7,4314.6,10.42541195]
[1757000745990,1e-08,4314.7,4314.6,11.35291195]
[1757000746199,1e-08,4314.7,4314.6,16.91998173]
[1757000747613,1e-08,4314.7,4314.6,17.03598173]
[1757000748502,1e-08,4314.7,4314.6,17.12885455]
[1757000750717,1e-08,4314.7,4314.6,11.88565455]
[1757000750903,1e-08,4314.7,4314.6,15.90265455]
[1757000751303,1e-08,4314.7,4314.6,11.88565455]
[1757000752037,1e-08,4314.7,4314.6,13.11085455]
[1757000752223,1e-08,4314.7,4314.6,8.88565455]
[1757000752430,1e-08,4314.7,4314.6,8.79278173]
[1757000752733,0.09660001,4314.7,4314.6,8.00078173]
[1757000752907,1e-08,4314.7,4314.6,8.00078173]
[1757000753105,1e-08,4314.7,4314.6,11.00078173]
[1757000753311,1e-08,4314.7,4314.6,11.29848173]
[1757000753948,1e-08,4314.7,4314.6,11.76538173]
[1757000754238,1e-08,4314.7,4314.6,11.00078173]
[1757000754607,0.117,4315.6,4315.1,2.31744339]
[1757000754810,0.001,4315.6,4315.1,7.12544339]
[1757000755141,0.001,4316.3,4315.3,0.792]
[1757000755342,0.001,4316.3,4316.2,2.31685278]
[1757000755726,0.001,4316.3,4316.2,2.43285278]
[1757000756839,0.0976,4316.3,4316.1,2.31689405]
[1757000757228,0.0976,4316.3,4316.1,2.31690577]
[1757000757433,0.0976,4316.3,4316.0,2.43295324]
[1757000757739,0.3692,4316.3,4316.0,2.43294711]
[1757000758040,0.3895,4316.3,4315.5,3.0]
[1757000758247,0.2716,4316.2,4315.8,0.116]
[1757000758411,0.6795,4316.2,4315.6,2.31717098]
[1757000758746,0.0984,4315.7,4315.5,2.43322359]
[1757000759039,0.0984,4315.7,4315.5,0.116]
[1757000759441,0.0984,4315.7,4315.6,2.3171749]
[1757000759865,0.116,4316.2,4315.5,2.4332142]
[1757000760314,0.116,4316.2,4315.5,0.116]
[1757000760730,0.1152,4316.2,4315.5,0.116]
[1757000760922,0.1152,4316.2,4316.1,2.31690646]
[1757000761140,0.2118,4316.2,4316.1,2.31690646]
[1757000761760,0.2118,4316.2,4315.9,2.31697369]
[1757000761984,0.2118,4316.2,4315.5,0.116]
[1757000762137,0.2118,4316.2,4315.8,2.31704446]
[1757000762466,0.2118,4316.2,4316.1,2.31690646]
[1757000763077,0.2118,4316.2,4315.5,0.89324441]
[1757000763236,0.2118,4316.2,4315.8,2.31702173]
[1757000763438,0.2118,4316.2,4315.6,3.0]
[1757000763665,0.2118,4316.2,4316.1,2.31690646]
[1757000763976,0.2118,4316.2,4315.8,2.31705985]
[1757000764282,0.2118,4316.2,4316.1,2.31690646]
[1757000764491,0.2118,4316.2,4316.0,2.31695516]
[1757000764781,0.2118,4316.2,4315.9,2.31701383]
[1757000764940,0.2118,4316.2,4315.7,2.3171212]
[1757000765135,0.2118,4316.2,4316.1,2.31690646]
[1757000765437,0.0966,4316.2,4315.1,4.014]
[1757000765661,0.116,4315.8,4315.2,0.116]
[1757000765970,0.116,4315.8,4315.4,2.31727726]
[1757000766696,0.116,4315.8,4315.7,2.3171212]
[1757000767042,0.001,4316.3,4315.7,2.3171212]
[1757000767043,0.001,4316.3,4316.0,2.31692156]
[1757000767249,0.001,4316.3,4315.8,6.51706031]
[1757000767250,0.116,4316.2,4315.8,6.51706031]
[1757000767475,0.116,4316.2,4315.8,4.2]
[1757000767658,0.0966,4315.9,4315.8,4.2]
[1757000767853,0.0966,4315.9,4315.8,6.51706751]
[1757000768269,0.116,4316.2,4315.9,2.31696479]
[1757000768672,4.129,4316.2,4315.8,4.2]
[1757000768876,4.129,4316.2,4316.1,2.31690646]
[1757000769177,0.001,4316.3,4316.2,2.31685278]
[1757000769355,0.001,4316.3,4316.2,3.24435278]
[1757000769547,0.001,4316.3,4316.2,3.54205278]
[1757000769949,0.0976,4316.3,4316.2,0.2163473]
[1757000770578,0.2136,4316.3,4316.2,0.2163473]
[1757000773055,0.2136,4316.3,4316.2,2.53320008]
[1757000773372,0.2136,4316.3,4316.2,0.2163473]
[1757000773679,4.2256,4316.3,4316.2,0.2163473]
[1757000774180,0.2136,4316.3,4316.2,0.2163473]
[1757000774374,4.2256,4316.3,4316.2,0.2163473]
[1757000777961,4.128,4316.3,4316.2,0.2163473]
[1757000778184,4.2246,4316.3,4316.2,0.2163473]
[1757000779361,7.75902392,4316.3,4316.2,0.2163473]
[1757000780089,2.31685278,4316.2,4316.1,0.004]
[1757000780502,2.41525278,4316.2,4316.1,0.004]
[1757000781084,6.42525278,4316.2,4316.1,0.004]
[1757000782296,7.72464045,4316.2,4316.1,0.004]
[1757000782483,7.70254045,4316.2,4316.1,0.004]
[1757000782689,7.99444045,4316.2,4316.1,0.004]
[1757000783211,6.98444045,4316.2,4316.1,0.004]
[1757000783379,10.99444045,4316.2,4316.1,0.004]
[1757000783569,6.71464045,4316.2,4316.1,0.004]
[1757000783764,10.72464045,4316.2,4316.1,0.004]
[1757000783969,10.99444045,4316.2,4316.1,0.004]
[1757000784372,10.70254045,4316.2,4316.1,0.004]
[1757000784588,10.99444045,4316.2,4316.1,0.004]
[1757000785508,10.43274045,4316.2,4316.1,0.004]
[1757000786164,10.43194045,4316.2,4316.1,0.004]
[1757000786816,10.43194045,4316.2,4316.1,0.3108]
[1757000786817,0.116,4316.2,4316.1,0.3108]
[1757000787020,0.116,4316.2,4316.1,1.2004]
[1757000787021,4.126,4316.2,4316.1,1.2004]
[1757000787172,0.116,4316.2,4316.1,1.2004]
[1757000787370,4.126,4316.2,4316.1,1.2004]
[1757000788601,0.116,4316.2,4316.1,1.2004]
[1757000788893,4.126,4316.2,4316.1,0.004]
[1757000789082,4.126,4316.2,4316.1,0.7482]
[1757000789283,4.126,4316.2,4316.1,1.2004]
[1757000789999,4.125,4316.2,4316.1,1.2004]
[1757000791298,6.53845278,4316.2,4316.1,0.004]
[1757000791483,7.09579806,4316.2,4316.1,0.004]
[1757000791683,4.125,4316.2,4316.1,0.3108]
[1757000793009,4.125,4316.2,4316.1,0.004]
[1757000793616,6.75625278,4316.2,4316.1,0.004]
[1757000793787,6.81215278,4316.2,4316.1,0.004]
[1757000793989,6.75625278,4316.2,4316.1,0.004]
[1757000795214,6.75525278,4316.2,4316.1,0.004]
[1757000795930,7.66255617,4316.2,4316.1,0.004]
[1757000796125,3.65455617,4316.2,4316.1,0.004]
[1757000796729,6.44085278,4316.2,4316.1,0.004]
[1757000796908,6.75265278,4316.2,4316.1,0.004]
[1757000797115,2.74465278,4316.2,4316.1,0.004]
[1757000797286,6.75265278,4316.2,4316.1,0.004]
[1757000797918,6.43985278,4316.2,4316.1,0.004]
[1757000798216,4.123,4316.2,4316.1,1.2004]
[1757000798716,6.75425278,4316.2,4316.1,0.004]
[1757000798919,7.66145353,4316.2,4316.1,0.004]
[1757000799800,7.34705353,4316.2,4316.1,0.004]
[1757000800004,6.43985278,4316.2,4316.1,0.004]
[1757000800615,6.53645278,4316.2,4316.1,0.004]
[1757000800821,9.80805278,4316.2,4316.1,0.004]
[1757000800987,9.53645278,4316.2,4316.1,0.004]
[1757000801388,5.52945278,4316.2,4316.1,0.004]
[1757000801585,6.31417353,4316.2,4316.1,0.004]
[1757000801783,6.31417353,4316.2,4316.1,0.7482]
[1757000801784,4.123,4316.2,4316.1,0.7482]
[1757000801984,6.53645278,4316.2,4316.1,0.004]
[1757000803092,10.09995278,4316.2,4316.1,0.004]
[1757000805439,9.53545278,4316.2,4316.1,0.004]
[1757000808009,5.43285278,4316.2,4316.1,0.2918]
[1757000808330,9.43885278,4316.2,4316.1,1.235]
[1757000808898,9.43985278,4316.2,4316.1,1.235]
[1757000809095,4.123,4316.2,4316.1,1.235]
[1757000809693,6.43985278,4316.2,4316.1,1.235]
[1757000809897,6.43985278,4316.2,4316.1,0.2918]
[1757000810098,6.43985278,4316.2,4316.1,0.004]
[1757000810523,6.43985278,4316.2,4316.1,0.2918]
[1757000810834,2.43385278,4316.2,4316.1,0.2918]
[1757000811128,6.43885278,4316.2,4316.1,0.004]
[1757000811543,6.43805278,4316.2,4316.1,0.004]
[1757000812334,7.31363356,4316.2,4316.1,0.004]
[1757000812533,7.41023356,4316.2,4316.1,0.004]
[1757000813617,7.31363356,4316.2,4316.1,0.004]
[1757000813826,7.41203356,4316.2,4316.1,0.004]
[1757000814013,2.3171212,4315.7,4315.6,0.004]
[1757000814214,8.0281212,4315.7,4315.6,0.004]
[1757000814444,11.3302212,4315.7,4315.6,0.004]
[1757000814743,11.3983212,4315.7,4315.6,0.004]
[1757000815215,2.31733599,4315.3,4315.2,0.004]
[1757000815415,10.50079591,4315.3,4315.2,0.004]
[1757000815641,10.80059591,4315.3,4315.2,0.004]
[1757000816714,10.87099591,4315.3,4315.2,0.004]
[1757000816915,3.792,4315.2,4314.8,1e-08]
[1757000817115,2.43355081,4314.9,4314.8,1e-08]
[1757000817363,6.73965081,4314.9,4314.8,1e-08]
[1757000817516,12.61713512,4314.9,4314.8,1e-08]
[1757000817716,12.90903512,4314.9,4314.8,1e-08]
[1757000817955,13.59011398,4314.9,4314.8,1e-08]
[1757000818516,7.71262967,4314.9,4314.8,1e-08]
[1757000818913,3.29052967,4314.9,4314.8,1e-08]
[1757000819219,7.71032967,4314.9,4314.8,1e-08]
[1757000820249,7.41052967,4314.9,4314.8,1e-08]
[1757000820818,7.41052967,4314.9,4314.8,0.28780001]
[1757000821419,7.50712967,4314.9,4314.8,1e-08]
[1757000822621,8.07062967,4314.9,4314.8,1e-08]
[1757000823351,7.50712967,4314.9,4314.8,1e-08]
[1757000823518,7.41052967,4314.9,4314.8,1e-08]
[1757000824720,3.40652967,4314.9,4314.8,1e-08]
[1757000825019,7.41052967,4314.9,4314.8,1e-08]
[1757000825529,7.41052967,4314.9,4314.8,0.28780001]
[1757000825917,3.40652967,4314.9,4314.8,0.29180001]
[1757000826120,7.40952967,4314.9,4314.8,0.00400001]
[1757000827853,5.827,4314.9,4314.8,1.23500001]
[1757000828153,8.14455081,4314.9,4314.8,1.23500001]
[1757000828833,8.14455081,4314.9,4314.8,0.29180001]
[1757000829057,8.14455081,4314.9,4314.8,1.23500001]
[1757000829857,9.1907515,4314.9,4314.8,0.00400001]
[1757000830556,9.2873515,4314.9,4314.8,0.00400001]
[1757000830758,12.1907515,4314.9,4314.8,0.00400001]
[1757000831060,12.2873515,4314.9,4314.8,0.00400001]
[1757000836161,12.1907515,4314.9,4314.8,0.00400001]
[1757000836368,12.2873515,4314.9,4314.8,0.00400001]
[1757000837075,12.2865515,4314.9,4314.8,0.00400001]
[1757000839557,18.16417719,4314.9,4314.8,0.00400001]
[1757000840444,2.31765823,4314.7,4314.6,0.004]
[1757000840780,0.792,4314.4,4314.1,0.004]
[1757000840998,11.49955253,4314.2,4314.1,0.004]
[1757000841170,11.61555253,4314.2,4314.1,0.004]
[1757000841978,12.40755253,4314.2,4314.1,0.004]
[1757000842189,12.52418473,4314.2,4314.1,0.004]
[1757000842366,17.57138542,4314.2,4314.1,0.004]
[1757000844688,7.38875973,4314.2,4314.1,0.004]
[1757000844996,0.116,4314.2,4314.1,1.2661]
[1757000845295,9.43392684,4314.2,4314.1,1.2661]
[1757000845458,4.116,4314.2,4314.1,1.2661]
[1757000845892,6.43392684,4314.2,4314.1,1.2661]
[1757000846079,4.116,4314.2,4314.1,1.2661]
[1757000847202,6.43392684,4314.2,4314.1,1.2661]
[1757000847563,8.31155253,4314.2,4314.1,0.7961]
[1757000847763,4.02656521,4314.9,4314.1,1.2661]
[1757000847764,1.709,4314.9,4314.1,1.2661]
[1757000847990,0.116,4314.2,4314.1,0.3024]
[1757000848292,4.116,4314.2,4314.1,0.3024]
[1757000848594,4.0,4314.2,4314.1,4.20498314]
[1757000849299,0.116,4314.4,4314.2,2.31789752]
[1757000849593,3.999,4314.3,4314.2,3.28159752]
[1757000849797,3.999,4314.3,4314.2,4.82045809]
[1757000850175,3.999,4314.3,4314.2,2.50256057]
[1757000850371,0.116,4314.4,4314.3,2.31787311]
[1757000850578,0.116,4314.4,4314.3,3.28157311]
[1757000850878,4.115,4314.4,4314.3,3.57997311]
[1757000851078,0.116,4314.4,4314.3,3.57997311]
[1757000851296,4.115,4314.4,4314.3,3.57997311]
[1757000851482,0.116,4314.4,4314.3,4.75793547]
[1757000851681,3.999,4314.4,4314.3,4.75793547]
[1757000852209,0.116,4314.7,4314.4,2.31779276]
[1757000852413,3.999,4314.6,4314.4,0.9637]
[1757000852603,3.999,4314.6,4314.5,1.2621]
[1757000852915,3.999,4314.6,4314.5,1.73789212]
[1757000853099,3.999,4314.6,4314.5,1.2621]
[1757000853594,0.116,4314.7,4314.5,1.2621]
[1757000853801,3.998,4314.6,4314.5,0.2984]
[1757000854381,3.998,4314.6,4314.5,1.2621]
[1757000855607,0.116,4314.7,4314.5,1.2621]
[1757000855905,3.998,4314.6,4314.5,0.2984]
[1757000856283,3.998,4314.6,4314.5,1.2621]
[1757000856486,3.998,4314.6,4314.5,3.57986567]
[1757000856790,3.998,4314.6,4314.5,1.2621]
[1757000859409,0.116,4314.7,4314.5,1.2621]
[1757000859717,3.997,4314.6,4314.5,0.2984]
[1757000860294,3.997,4314.6,4314.5,1.2621]
[1757000860817,3.998,4314.6,4314.5,1.2621]
[1757000861021,3.998,4314.6,4314.5,3.93785686]
[1757000861318,3.998,4314.6,4314.5,1.2621]
[1757000862098,3.998,4314.6,4314.5,3.57986567]
[1757000862394,3.9962,4314.6,4314.5,3.57986567]
[1757000862585,0.0002,4314.6,4314.5,3.57986567]
[1757000862789,3.9962,4314.6,4314.5,4.16963703]
[1757000862988,3.9962,4314.6,4314.5,4.28563703]
[1757000863721,0.0002,4314.6,4314.5,4.28563703]
[1757000864913,0.0002,4314.6,4314.5,1.96787136]
[1757000865118,0.0002,4314.6,4314.5,0.9081]
[1757000865314,0.0002,4314.6,4314.5,0.2984]
[1757000865516,0.0968,4314.6,4314.1,0.004]
[1757000865721,2.43392684,4314.2,4314.1,0.004]
[1757000866029,6.42892684,4314.2,4314.1,0.004]
[1757000866231,6.52842684,4314.2,4314.1,0.004]
[1757000866430,10.20382684,4314.2,4314.1,0.004]
[1757000866611,9.91192684,4314.2,4314.1,0.004]
[1757000866813,6.75640332,4314.2,4314.1,0.004]
[1757000867018,11.13490332,4314.2,4314.1,0.004]
[1757000867212,6.75640332,4314.2,4314.1,0.004]
[1757000867431,11.42680332,4314.2,4314.1,0.004]
[1757000867659,11.42680332,4314.2,4313.9,0.004]
[1757000867660,2.3180343,4314.0,4313.9,0.004]
[1757000867807,5.31808804,4313.9,4313.8,0.025]
[1757000868148,11.91198804,4313.9,4313.8,0.025]
[1757000870139,11.91198804,4313.9,4313.8,1e-08]
[1757000870931,6.11014177,4313.8,4313.7,1e-08]
[1757000871237,7.62501825,4313.8,4313.7,1e-08]
[1757000871439,8.11011825,4313.8,4313.7,1e-08]
[1757000871941,12.10511825,4313.8,4313.7,1e-08]
[1757000872144,7.31811825,4313.8,4313.7,1e-08]
[1757000872340,11.31311825,4313.8,4313.7,1e-08]
[1757000872841,12.10511825,4313.8,4313.7,1e-08]
[1757000876227,11.81321825,4313.8,4313.7,1e-08]
[1757000876626,7.64791825,4313.8,4313.7,1e-08]
[1757000876833,11.64191825,4313.8,4313.7,1e-08]
[1757000877739,10.65111825,4313.8,4313.7,1e-08]
[1757000877910,6.65711825,4313.8,4313.7,1e-08]
[1757000878117,9.42814177,4313.8,4313.7,1e-08]
[1757000878620,9.52474177,4313.8,4313.7,1e-08]
[1757000880815,9.42814177,4313.8,4313.7,1e-08]
[1757000881013,5.43414177,4313.8,4313.7,0.77430001]
[1757000881213,5.43414177,4313.8,4313.7,1.24020001]
[1757000881414,9.42814177,4313.8,4313.7,0.77430001]
[1757000881815,9.42814177,4313.8,4313.7,1.24020001]
[1757000882242,6.42814177,4313.8,4313.7,1.24020001]
[1757000883547,0.116,4313.8,4313.7,1.24020001]
[1757000883841,6.42714177,4313.8,4313.7,1.24020001]
[1757000884021,4.109,4313.8,4313.7,1.24020001]
[1757000885443,6.42714177,4313.8,4313.7,0.76110001]
[1757000885966,0.116,4313.8,4313.7,1.24020001]
[1757000886257,4.109,4313.8,4313.7,1.5964552]
[1757000887117,0.116,4313.8,4313.7,1.5964552]
[1757000887417,4.108,4313.8,4313.7,1.24020001]
[1757000887619,6.52274177,4313.8,4313.7,1e-08]
[1757000887829,9.52274177,4313.8,4313.7,1e-08]
[1757000888155,9.52194177,4313.8,4313.7,1e-08]
[1757000888518,10.87673945,4313.8,4313.7,1e-08]
[1757000889323,11.26313945,4313.8,4313.7,1e-08]
[1757000889528,11.55503945,4313.8,4313.7,1e-08]
[1757000891351,2.31841049,4313.3,4313.2,0.004]
[1757000891621,6.31041049,4313.3,4313.2,0.004]
[1757000891817,10.68878535,4313.3,4313.2,0.004]
[1757000892947,10.68778535,4313.3,4313.2,0.004]
[1757000894421,6.69678535,4313.3,4313.2,0.004]
[1757000894621,10.68778535,4313.3,4313.2,0.004]
[1757000896151,6.69678535,4313.3,4313.2,0.004]
[1757000896382,10.68778535,4313.3,4313.2,0.004]
[1757000896923,6.59728535,4313.3,4313.2,0.004]
[1757000897967,10.58828535,4313.3,4313.2,0.004]
[1757000898281,4.37547486,4313.3,4313.2,0.3094]
[1757000898568,6.30941049,4313.3,4313.2,1.2393]
[1757000898768,5.31814177,4313.8,4313.2,1.2393]